Workbook

Sheet Deckblatt
A1: Businessplan
A4: Unternehmensname | C4: Nordlicht Digitalstudio
A5: Name des Gründers / der Gründerin | C5: Anna Becker | F5: Branche | G5: Webdesign & Branding
A6: Standort | C6: Berlin | F6: Datum | G6: 2026-03-11
A7: E-Mail | C7: anna@nordlicht-digital.de | F7: Telefon | G7: +49 30 555 88 21
A9: Geschäftsidee / Kurzbeschreibung | C9: Digitalstudio für Webdesign, Markenauftritt, SEO-Betreuung und laufende Website-Pflege für kleine Unternehmen und Selbstständige.
A12: Kurzüberblick
A14: Gesamter Kapitalbedarf | D14: =Kapitalbedarf_Finanzierung!B35 -> 37,200.00 € | E14: Geplanter Jahresumsatz netto | H14: =Umsatzplanung!I31 -> 100,900.00 €
A16: Eigenkapital | D16: =Kapitalbedarf_Finanzierung!B43 -> 20,500.00 € | E16: Betriebsergebnis Folgejahr | H16: =Rentabilitaetsvorschau!F32 -> 46,420.00 €
A18: Finanzierungsbedarf | D18: =Kapitalbedarf_Finanzierung!B51 -> 16,700.00 € | E18: Jahresendliquidität | H18: =Liquiditaetsplanung!M32 -> 29,610.00 €
A20: Unternehmerbedarf pro Monat | D20: =Unternehmerlohn!B18 -> 2,750.00 €
A23: Hinweis: Alle Zahlen in diesem Workbook sind Beispieldaten. Die Eingabezellen können frei überschrieben werden.

Sheet Gruenderprofil
A1: Gründerprofil
A4: Persönliche Angaben
A5: Vor- und Nachname | B5: Anna Becker
A6: Anschrift | B6: Rykestraße 14, 10405 Berlin
A7: Geburtsdatum | B7: 1990-06-18
A8: Geburtsort | B8: Hamburg
A9: Telefon | B9: +49 30 555 88 21
A10: E-Mail | B10: anna@nordlicht-digital.de
A12: Ausbildung
A13: Zeitraum | B13: Schule / Studium / Ausbildung | C13: Abschluss
A14: 2009 - 2012 | B14: B.A. Kommunikationsdesign, Hochschule Hannover | C14: Bachelor
A15: 2013 - 2014 | B15: Weiterbildung UX/UI Design, Berlin | C15: Zertifikat
A16: 2015 - 2016 | B16: SEO & Content Marketing Weiterbildung | C16: Zertifikat
A18: Weiterbildungen
A19: Zeitraum | B19: Weiterbildung | C19: Abschluss / Zertifikat
A20: 2018 | B20: Google Analytics Intensivkurs | C20: Teilnahme
A21: 2020 | B21: WordPress Developer Training | C21: Zertifikat
A22: 2023 | B22: KI-gestützte Content-Workflows | C22: Workshop
A24: Berufserfahrung
A25: Zeitraum | B25: Tätigkeit | C25: Unternehmen / Ort
A26: 2012 - 2015 | B26: Junior Designerin | C26: Brandagentur Nord, Hamburg
A27: 2015 - 2019 | B27: Senior Webdesignerin | C27: Studio Pixel, Berlin
A28: 2019 - heute | B28: Freelance Webdesignerin & Beraterin | C28: Berlin
A30: Relevante Kenntnisse
A31: Fachkenntnisse | B31: WordPress, Shopify, Webflow, Figma, Elementor, SEO-Grundlagen, Conversion-orientierte Landingpages
A34: Vertrieb / Marketing | B34: Angebotserstellung, Kundengespräche, lokale SEO, E-Mail-Marketing, Social Media Setups
A37: Technik / Produktion | B37: Responsive Websites, CMS-Einrichtung, Performance-Optimierung, Tracking-Setups
A40: Sonstiges | B40: Projektmanagement, Kundenworkshops, Netzwerk in Berlin, Zusammenarbeit mit Fotografen und Textern

Sheet Kapitalbedarf_Finanzierung
A1: Kapitalbedarf und Finanzierung
A4: A. Investitionen für die Betriebsbereitschaft
A5: Position | B5: Betrag €
A6: Gebäude / Umbau | B6: 3,500.00 €
A7: Maschinen / Geräte | B7: 0
A8: Geschäftsausstattung | B8: 1,800.00 €
A9: EDV / Software | B9: 6,200.00 €
A10: Fahrzeug | B10: 0
A11: Sonstiges | B11: 1,200.00 €
A12: Zwischensumme Investitionen | B12: =SUM(B6:B11) -> 12,700.00 €
A14: B. Anlauf- und Betriebsmittelbedarf
A15: Position | B15: Betrag €
A16: Warenlager / Material | B16: 800.00 €
A17: Roh-, Hilfs- und Betriebsstoffe | B17: 0
A18: Anlaufkosten | B18: 4,500.00 €
A19: Marketing zum Start | B19: 2,500.00 €
A20: Liquiditätsreserve | B20: 9,000.00 €
A21: Sonstiges | B21: 1,200.00 €
A22: Zwischensumme Betriebsmittel | B22: =SUM(B16:B21) -> 18,000.00 €
A24: C. Gründungskosten
A25: Position | B25: Betrag €
A26: Beratung | B26: 1,800.00 €
A27: Notar / Rechtskosten | B27: 700.00 €
A28: Anmeldungen / Eintragungen | B28: 350.00 €
A29: Kautionen | B29: 2,000.00 €
A30: Versicherungen | B30: 900.00 €
A31: Sonstiges | B31: 750.00 €
A32: Zwischensumme Gründungskosten | B32: =SUM(B26:B31) -> 6,500.00 €
A34: D. Gesamter Kapitalbedarf
A35: Gesamter Kapitalbedarf | B35: =B12+B22+B32 -> 37,200.00 €
A37: E. Eigenkapital
A38: Barvermögen | B38: 6,000.00 €
A39: Bankguthaben | B39: 12,000.00 €
A40: Sacheinlagen | B40: 2,500.00 €
A41: Zuschüsse / Schenkungen | B41: 0
A42: Sonstiges | B42: 0
A43: Summe Eigenkapital | B43: =SUM(B38:B42) -> 20,500.00 €
A45: F. Fremdfinanzierung
A46: Bankdarlehen | B46: 10,000.00 €
A47: Förderdarlehen | B47: 4,500.00 €
A48: Kontokorrentkredit | B48: 0
A49: Familie / private Darlehen | B49: 2,200.00 €
A50: Sonstige Finanzierung | B50: 0
A51: Summe Fremdfinanzierung | B51: =SUM(B46:B50) -> 16,700.00 €
A53: G. Finanzierungsergebnis
A54: Gesamter Kapitalbedarf | B54: =B35 -> 37,200.00 €
A55: Eigenkapital + Fremdfinanzierung | B55: =B43+B51 -> 37,200.00 €
A56: Finanzierungslücke / Überschuss | B56: =B55-B54 -> 0
A57: Status | B57: =IF(B55>=B54,"Finanzierung gedeckt","Finanzierung nicht vollständig gedeckt") -> Finanzierung gedeckt

Sheet Umsatzplanung
A1: Umsatzplanung
A3: Umsatzsteuersatz | B3: 19.0% | D3: Bitte nur realistische Durchschnittswerte eingeben.
A5: Kategorie | B5: Produkt / Leistung | C5: Ø Auftragswert H1 | D5: Monate H1 | E5: Umsatz H1 | F5: Ø Auftragswert H2 | G5: Monate H2 | H5: Umsatz H2 | I5: Jahresumsatz netto | J5: Akquise / Kanal | K5: Notiz
A6: Produktgruppen
A7: Produktgruppen | B7: Webdesign Paket | C7: 2,500.00 € | D7: 4 | E7: =C7*D7 -> 10,000.00 € | F7: 2,800.00 € | G7: 5 | H7: =F7*G7 -> 14,000.00 € | I7: =E7+H7 -> 24,000.00 € | J7: Empfehlungen | K7: KMU-Websites
A8: Produktgruppen | B8: Branding Paket | C8: 1,800.00 € | D8: 3 | E8: =C8*D8 -> 5,400.00 € | F8: 2,000.00 € | G8: 4 | H8: =F8*G8 -> 8,000.00 € | I8: =E8+H8 -> 13,400.00 € | J8: Netzwerk | K8: Logo & Corporate Design
A9: Produktgruppen | B9: SEO Betreuung | C9: 900.00 € | D9: 6 | E9: =C9*D9 -> 5,400.00 € | F9: 1,100.00 € | G9: 6 | H9: =F9*G9 -> 6,600.00 € | I9: =E9+H9 -> 12,000.00 € | J9: Bestandskunden | K9: monatliche Betreuung
B10: Zwischensumme | E10: =SUM(E7:E9) -> 20,800.00 € | H10: =SUM(H7:H9) -> 28,600.00 € | I10: =SUM(I7:I9) -> 49,400.00 €
A12: Bestandskunden
A13: Bestandskunden | B13: Wartungsverträge | C13: 650.00 € | D13: 6 | E13: =C13*D13 -> 3,900.00 € | F13: 750.00 € | G13: 6 | H13: =F13*G13 -> 4,500.00 € | I13: =E13+H13 -> 8,400.00 € | J13: Bestandskunden | K13: laufende Pflege
A14: Bestandskunden | B14: Schulungen | C14: 1,200.00 € | D14: 2 | E14: =C14*D14 -> 2,400.00 € | F14: 1,400.00 € | G14: 3 | H14: =F14*G14 -> 4,200.00 € | I14: =E14+H14 -> 6,600.00 € | J14: Direktvertrieb | K14: Website-Schulungen
A15: Bestandskunden | B15: Content Updates | C15: 500.00 € | D15: 3 | E15: =C15*D15 -> 1,500.00 € | F15: 600.00 € | G15: 4 | H15: =F15*G15 -> 2,400.00 € | I15: =E15+H15 -> 3,900.00 € | J15: Bestandskunden | K15: kleinere Pakete
B16: Zwischensumme | E16: =SUM(E13:E15) -> 7,800.00 € | H16: =SUM(H13:H15) -> 11,100.00 € | I16: =SUM(I13:I15) -> 18,900.00 €
A18: Neukunden
A19: Neukunden | B19: E-Commerce Projekt | C19: 3,500.00 € | D19: 1 | E19: =C19*D19 -> 3,500.00 € | F19: 4,200.00 € | G19: 2 | H19: =F19*G19 -> 8,400.00 € | I19: =E19+H19 -> 11,900.00 € | J19: LinkedIn / Partner | K19: Shopify / WooCommerce
A20: Neukunden | B20: Local SEO Projekt | C20: 1,500.00 € | D20: 2 | E20: =C20*D20 -> 3,000.00 € | F20: 1,800.00 € | G20: 3 | H20: =F20*G20 -> 5,400.00 € | I20: =E20+H20 -> 8,400.00 € | J20: SEO / Website | K20: lokale Anbieter
A21: Neukunden | B21: Social Media Setup | C21: 1,000.00 € | D21: 2 | E21: =C21*D21 -> 2,000.00 € | F21: 1,200.00 € | G21: 3 | H21: =F21*G21 -> 3,600.00 € | I21: =E21+H21 -> 5,600.00 € | J21: Empfehlungen | K21: Starterpaket
B22: Zwischensumme | E22: =SUM(E19:E21) -> 8,500.00 € | H22: =SUM(H19:H21) -> 17,400.00 € | I22: =SUM(I19:I21) -> 25,900.00 €
A24: Sonstiges
A25: Sonstiges | B25: Hosting / Affiliate | C25: 300.00 € | D25: 6 | E25: =C25*D25 -> 1,800.00 € | F25: 350.00 € | G25: 6 | H25: =F25*G25 -> 2,100.00 € | I25: =E25+H25 -> 3,900.00 € | J25: Partner | K25: wiederkehrend
A26: Sonstiges | B26: Fotografie Add-on | C26: 800.00 € | D26: 1 | E26: =C26*D26 -> 800.00 € | F26: 1,000.00 € | G26: 2 | H26: =F26*G26 -> 2,000.00 € | I26: =E26+H26 -> 2,800.00 € | J26: Kooperationspartner | K26: optionale Zusatzleistung
B27: Zwischensumme | E27: =SUM(E25:E26) -> 2,600.00 € | H27: =SUM(H25:H26) -> 4,100.00 € | I27: =SUM(I25:I26) -> 6,700.00 €
A29: Gesamtergebnis
B30: Gesamtumsatz H1 | E30: =SUM(E10,E16,E22,E27) -> 39,700.00 €
B31: Gesamtumsatz netto Jahr | I31: =SUM(I10,I16,I22,I27) -> 100,900.00 €
B32: Umsatzsteuer Betrag | I32: =I31*$B$3 -> 19,171.00 €
B33: Gesamtumsatz brutto | I33: =I31+I32 -> 120,071.00 €

Sheet Rentabilitaetsvorschau
A1: Rentabilitätsvorschau
A3: Monate im Rumpfjahr | B3: 6 | E3: USt.-Satz | F3: =Umsatzplanung!$B$3 -> 19.0%
B5: Monatlich | C5: Rumpfjahr | D5: % | E5: Monatlich | F5: Folgejahr | G5: %
A6: Umsatz brutto | C6: =Umsatzplanung!$I$33*($B$3/12) -> 60,035.50 € | F6: =Umsatzplanung!$I$33 -> 120,071.00 €
A7: Umsatzsteuer | C7: =C6-C8 -> 9,585.50 € | F7: =F6-F8 -> 19,171.00 €
A8: Umsatz netto | C8: =Umsatzplanung!$I$31*($B$3/12) -> 50,450.00 € | F8: =Umsatzplanung!$I$31 -> 100,900.00 €
A9: Materialeinsatz | B9: 120.00 € | C9: =B9*$B$3 -> 720.00 € | D9: =IF(C8=0,"",C9/C8) -> 1.4% | E9: 150.00 € | F9: =E9*12 -> 1,800.00 € | G9: =IF(F8=0,"",F9/F8) -> 1.8%
A10: Rohgewinn I | C10: =C8-C9 -> 49,730.00 € | D10: =IF(C8=0,"",C10/C8) -> 98.6% | F10: =F8-F9 -> 99,100.00 € | G10: =IF(F8=0,"",F10/F8) -> 98.2%
A11: Personalkosten | B11: 1,800.00 € | C11: =B11*$B$3 -> 10,800.00 € | D11: =IF(C8=0,"",C11/C8) -> 21.4% | E11: 2,500.00 € | F11: =E11*12 -> 30,000.00 € | G11: =IF(F8=0,"",F11/F8) -> 29.7%
A12: Rohgewinn II | C12: =C10-C11 -> 38,930.00 € | D12: =IF(C8=0,"",C12/C8) -> 77.2% | F12: =F10-F11 -> 69,100.00 € | G12: =IF(F8=0,"",F12/F8) -> 68.5%
A14: Sonstige betriebliche Kosten
A15: Laden- / Raummiete | B15: 450.00 € | C15: =B15*$B$3 -> 2,700.00 € | E15: 550.00 € | F15: =E15*12 -> 6,600.00 €
A16: Raumnebenkosten | B16: 120.00 € | C16: 720.00 € | E16: 140.00 € | F16: 1,680.00 €
A17: Werbung / Marketing | B17: 250.00 € | C17: 1,500.00 € | E17: 300.00 € | F17: 3,600.00 €
A18: Fahrzeugkosten | B18: 90.00 € | C18: 540.00 € | E18: 110.00 € | F18: 1,320.00 €
A19: Büro / Material | B19: 80.00 € | C19: 480.00 € | E19: 90.00 € | F19: 1,080.00 €
A20: Telefon / Internet | B20: 70.00 € | C20: 420.00 € | E20: 80.00 € | F20: 960.00 €
A21: Versicherungen | B21: 40.00 € | C21: 240.00 € | E21: 50.00 € | F21: 600.00 €
A22: Rechts- / Steuerberatung | B22: 85.00 € | C22: 510.00 € | E22: 95.00 € | F22: 1,140.00 €
A23: Fachliteratur | B23: 25.00 € | C23: 150.00 € | E23: 30.00 € | F23: 360.00 €
A24: Beiträge / Gebühren | B24: 30.00 € | C24: 180.00 € | E24: 35.00 € | F24: 420.00 €
A25: Kontoführung | B25: 18.00 € | C25: 108.00 € | E25: 20.00 € | F25: 240.00 €
A26: Sonstiges | B26: 60.00 € | C26: 360.00 € | E26: 70.00 € | F26: 840.00 €
A27: Total sonstige Kosten | C27: =SUM(C15:C26) -> 7,908.00 € | D27: =IF(C8=0,"",C27/C8) -> 15.7% | F27: =SUM(F15:F26) -> 18,840.00 € | G27: =IF(F8=0,"",F27/F8) -> 18.7%
A28: Erweiterter Cashflow | C28: =C12-C27 -> 31,022.00 € | D28: =IF(C8=0,"",C28/C8) -> 61.5% | F28: =F12-F27 -> 50,260.00 € | G28: =IF(F8=0,"",F28/F8) -> 49.8%
A29: Zinsen | B29: 60.00 € | C29: =B29*$B$3 -> 360.00 € | D29: =IF(C8=0,"",C29/C8) -> 0.7% | E29: 60.00 € | F29: =E29*12 -> 720.00 € | G29: =IF(F8=0,"",F29/F8) -> 0.7%
A30: Cashflow | C30: =C28-C29 -> 30,662.00 € | D30: =IF(C8=0,"",C30/C8) -> 60.8% | F30: =F28-F29 -> 49,540.00 € | G30: =IF(F8=0,"",F30/F8) -> 49.1%
A31: Abschreibungen | B31: 200.00 € | C31: =B31*$B$3 -> 1,200.00 € | D31: =IF(C8=0,"",C31/C8) -> 2.4% | E31: 260.00 € | F31: =E31*12 -> 3,120.00 € | G31: =IF(F8=0,"",F31/F8) -> 3.1%
A32: Betriebsergebnis | C32: =C30-C31 -> 29,462.00 € | D32: =IF(C8=0,"",C32/C8) -> 58.4% | F32: =F30-F31 -> 46,420.00 € | G32: =IF(F8=0,"",F32/F8) -> 46.0%

Sheet Liquiditaetsplanung
A1: Liquiditätsplanung
A3: Anfangsliquidität | B3: 15,000.00 €
A4: Einzahlungen
B5: Jan | C5: Feb | D5: Mär | E5: Apr | F5: Mai | G5: Jun | H5: Jul | I5: Aug | J5: Sep | K5: Okt | L5: Nov | M5: Dez | N5: Gesamt
A6: Umsatzerlöse 1 | B6: 2,500.00 € | C6: 3,000.00 € | D6: 4,000.00 € | E6: 4,500.00 € | F6: 5,500.00 € | G6: 6,000.00 € | H6: 6,500.00 € | I6: 7,500.00 € | J6: 8,000.00 € | K6: 9,000.00 € | L6: 10,000.00 € | M6: 11,000.00 € | N6: =SUM(B6:M6) -> 77,500.00 €
A7: Umsatzerlöse 2 | B7: 0 | C7: 300.00 € | D7: 600.00 € | E7: 1,000.00 € | F7: 1,200.00 € | G7: 1,500.00 € | H7: 1,800.00 € | I7: 2,200.00 € | J7: 2,600.00 € | K7: 2,800.00 € | L7: 3,000.00 € | M7: 3,300.00 € | N7: 20,300.00 €
A8: Sonstige Einzahlungen | B8: 300.00 € | C8: 300.00 € | D8: 300.00 € | E8: 300.00 € | F8: 300.00 € | G8: 300.00 € | H8: 200.00 € | I8: 200.00 € | J8: 200.00 € | K8: 0 | L8: 0 | M8: 0 | N8: 2,400.00 €
A9: Zuschüsse | B9: 5,000.00 € | C9: 0 | D9: 0 | E9: 0 | F9: 0 | G9: 0 | H9: 0 | I9: 0 | J9: 0 | K9: 0 | L9: 0 | M9: 0 | N9: 5,000.00 €
A10: Private Einlagen | B10: 2,000.00 € | C10: 0 | D10: 0 | E10: 0 | F10: 0 | G10: 0 | H10: 0 | I10: 0 | J10: 0 | K10: 0 | L10: 0 | M10: 0 | N10: 2,000.00 €
A11: Sonstiges | B11: 0 | C11: 0 | D11: 0 | E11: 0 | F11: 0 | G11: 0 | H11: 0 | I11: 0 | J11: 0 | K11: 0 | L11: 0 | M11: 0 | N11: 0
A12: Summe Einzahlungen | B12: =SUM(B6:B11) -> 9,800.00 € | C12: 3,600.00 € | D12: 4,900.00 € | E12: 5,800.00 € | F12: 7,000.00 € | G12: 7,800.00 € | H12: 8,500.00 € | I12: 9,900.00 € | J12: 10,800.00 € | K12: 11,800.00 € | L12: 13,000.00 € | M12: 14,300.00 € | N12: 107,200.00 €
A14: Auszahlungen
B15: Jan | C15: Feb | D15: Mär | E15: Apr | F15: Mai | G15: Jun | H15: Jul | I15: Aug | J15: Sep | K15: Okt | L15: Nov | M15: Dez | N15: Gesamt
A16: Investitionen | B16: 6,000.00 € | C16: 3,000.00 € | D16: 1,500.00 € | E16: 1,000.00 € | F16: 500.00 € | G16: 0 | H16: 0 | I16: 0 | J16: 0 | K16: 0 | L16: 0 | M16: 0 | N16: =SUM(B16:M16) -> 12,000.00 €
A17: Personalkosten Geschäftsführung | B17: 1,800.00 € | C17: 1,800.00 € | D17: 1,800.00 € | E17: 1,800.00 € | F17: 1,800.00 € | G17: 1,800.00 € | H17: 1,800.00 € | I17: 1,800.00 € | J17: 1,800.00 € | K17: 1,800.00 € | L17: 1,800.00 € | M17: 1,800.00 € | N17: 21,600.00 €
A18: Personalkosten Mitarbeiter | B18: 0 | C18: 0 | D18: 0 | E18: 0 | F18: 0 | G18: 0 | H18: 900.00 € | I18: 900.00 € | J18: 900.00 € | K18: 900.00 € | L18: 900.00 € | M18: 900.00 € | N18: 5,400.00 €
A19: Material / Waren | B19: 150.00 € | C19: 180.00 € | D19: 220.00 € | E19: 250.00 € | F19: 300.00 € | G19: 350.00 € | H19: 380.00 € | I19: 420.00 € | J19: 450.00 € | K19: 500.00 € | L19: 550.00 € | M19: 600.00 € | N19: 4,350.00 €
A20: Laufende Betriebsausgaben | B20: 1,000.00 € | C20: 1,000.00 € | D20: 1,000.00 € | E20: 1,000.00 € | F20: 1,000.00 € | G20: 1,000.00 € | H20: 1,000.00 € | I20: 1,000.00 € | J20: 1,000.00 € | K20: 1,000.00 € | L20: 1,000.00 € | M20: 1,000.00 € | N20: 12,000.00 €
A21: Marketing | B21: 500.00 € | C21: 500.00 € | D21: 400.00 € | E21: 400.00 € | F21: 350.00 € | G21: 350.00 € | H21: 300.00 € | I21: 300.00 € | J21: 250.00 € | K21: 250.00 € | L21: 250.00 € | M21: 250.00 € | N21: 4,100.00 €
A22: Miete / Nebenkosten | B22: 650.00 € | C22: 650.00 € | D22: 650.00 € | E22: 650.00 € | F22: 650.00 € | G22: 650.00 € | H22: 650.00 € | I22: 650.00 € | J22: 650.00 € | K22: 650.00 € | L22: 650.00 € | M22: 650.00 € | N22: 7,800.00 €
A23: Zinsen | B23: 60.00 € | C23: 60.00 € | D23: 60.00 € | E23: 60.00 € | F23: 60.00 € | G23: 60.00 € | H23: 60.00 € | I23: 60.00 € | J23: 60.00 € | K23: 60.00 € | L23: 60.00 € | M23: 60.00 € | N23: 720.00 €
A24: Tilgung | B24: 0 | C24: 0 | D24: 0 | E24: 250.00 € | F24: 250.00 € | G24: 250.00 € | H24: 250.00 € | I24: 250.00 € | J24: 250.00 € | K24: 250.00 € | L24: 250.00 € | M24: 250.00 € | N24: 2,250.00 €
A25: Umsatzsteuer | B25: 0 | C25: 0 | D25: 350.00 € | E25: 0 | F25: 0 | G25: 450.00 € | H25: 0 | I25: 0 | J25: 600.00 € | K25: 0 | L25: 0 | M25: 750.00 € | N25: 2,150.00 €
A26: Sonstige Steuern | B26: 0 | C26: 0 | D26: 0 | E26: 0 | F26: 0 | G26: 0 | H26: 0 | I26: 0 | J26: 300.00 € | K26: 0 | L26: 0 | M26: 300.00 € | N26: 600.00 €
A27: Privatentnahmen | B27: 1,500.00 € | C27: 1,500.00 € | D27: 1,500.00 € | E27: 1,500.00 € | F27: 1,500.00 € | G27: 1,500.00 € | H27: 1,500.00 € | I27: 1,500.00 € | J27: 1,500.00 € | K27: 1,500.00 € | L27: 1,500.00 € | M27: 1,500.00 € | N27: 18,000.00 €
A28: Sonstiges | B28: 120.00 € | C28: 120.00 € | D28: 150.00 € | E28: 120.00 € | F28: 120.00 € | G28: 120.00 € | H28: 120.00 € | I28: 150.00 € | J28: 150.00 € | K28: 150.00 € | L28: 150.00 € | M28: 150.00 € | N28: 1,620.00 €
A29: Summe Auszahlungen | B29: =SUM(B16:B28) -> 11,780.00 € | C29: 8,810.00 € | D29: 7,630.00 € | E29: 7,030.00 € | F29: 6,530.00 € | G29: 6,530.00 € | H29: 6,960.00 € | I29: 7,030.00 € | J29: 7,910.00 € | K29: 7,060.00 € | L29: 7,110.00 € | M29: 8,210.00 € | N29: 92,590.00 €
A30: Ergebnis
A31: Überschuss / Fehlbetrag | B31: =B12-B29 -> (1,980.00 €) | C31: (5,210.00 €) | D31: (2,730.00 €) | E31: (1,230.00 €) | F31: 470.00 € | G31: 1,270.00 € | H31: 1,540.00 € | I31: 2,870.00 € | J31: 2,890.00 € | K31: 4,740.00 € | L31: 5,890.00 € | M31: 6,090.00 € | N31: 14,610.00 €
A32: Kumulierte Liquidität | B32: =$B$3+B31 -> 13,020.00 € | C32: =B32+C31 -> 7,810.00 € | D32: 5,080.00 € | E32: 3,850.00 € | F32: 4,320.00 € | G32: 5,590.00 € | H32: 7,130.00 € | I32: 10,000.00 € | J32: 12,890.00 € | K32: 17,630.00 € | L32: 23,520.00 € | M32: 29,610.00 € | N32: =M32 -> 29,610.00 €
A34: Abgleich
A35: Jahresumsatz netto lt. Umsatzplanung | N35: =Umsatzplanung!$I$31 -> 100,900.00 €
A36: Jahresumsatz aus Liquiditätsplanung (Umsatzerlöse 1+2) | N36: =N6+N7 -> 97,800.00 €
A37: Abweichung | N37: =N36-N35 -> (3,100.00 €)
A38: Status | N38: =IF(ABS(N37)<=N35*0.1,"Plausibel","Bitte prüfen") -> Plausibel

Sheet Unternehmerlohn
A1: Unternehmerlohn
A4: Private Ausgaben pro Jahr
A5: Kranken- und Pflegeversicherung | B5: 3,000.00 €
A6: Altersvorsorge | B6: 2,400.00 €
A7: Lebens- / Berufsunfähigkeitsversicherung | B7: 900.00 €
A8: Sonstige private Versicherungen | B8: 600.00 €
A9: Miete und Nebenkosten privat | B9: 10,200.00 €
A10: Lebenshaltungskosten | B10: 7,200.00 €
A11: Mobilität privat | B11: 1,200.00 €
A12: Kinder / Familie | B12: 1,800.00 €
A13: Einkommenssteuer privat | B13: 2,500.00 €
A14: Sonstige private Ausgaben | B14: 1,200.00 €
A15: Summe private Fixkosten pro Jahr | B15: =SUM(B5:B14) -> 31,000.00 €
A17: Zusätzlicher Puffer | B17: 2,000.00 €
A18: Unternehmerbedarf pro Monat | B18: =B19/12 -> 2,750.00 €
A19: Gesamter Unternehmerbedarf pro Jahr | B19: =B15+B17 -> 33,000.00 €
A21: Dieser Wert dient als Orientierung für notwendige Privatentnahmen.
